bitfinex-derivatives/quotes_ETHF0:USTF0_20250629
["timestamp","ask_amount","ask_price","bid_price","bid_amount"]
[1751166013860,0.57552,2431.7,2431.6,33.75625]
[1751166014164,1.26072,2431.8,2431.7,0.57552]
[1751166014356,0.57552,2431.7,2431.6,33.75624]
[1751166014962,0.57552,2431.7,2431.6,33.1807]
[1751166015963,0.57552,2431.7,2431.6,33.75625]
[1751166016157,0.57552,2431.7,2431.6,33.1807]
[1751166016357,0.57552,2431.7,2431.6,33.75625]
[1751166024269,0.57552,2431.7,2431.6,9.00025]
[1751166024571,0.57552,2431.7,2431.6,33.75025]
[1751166026570,0.57552,2431.7,2431.6,35.83313798]
[1751166029768,0.57552,2431.7,2431.6,35.25758798]
[1751166029972,0.57552,2431.7,2431.6,35.83313798]
[1751166030976,0.57552,2431.7,2431.6,35.25358798]
[1751166031172,0.57552,2431.7,2431.6,35.82913798]
[1751166035476,1.58419675,2431.7,2431.6,35.82913798]
[1751166040178,1.58419675,2431.7,2431.6,11.08313798]
[1751166040477,1.58419675,2431.7,2431.6,35.24758798]
[1751166042677,1.58419675,2431.7,2431.6,35.82313798]
[1751166047080,1.58419675,2431.7,2431.6,29.54413798]
[1751166047767,1.58419675,2431.7,2431.6,27.51978798]
[1751166048279,1.58419675,2431.7,2431.6,28.09533798]
[1751166048982,1.58419675,2431.7,2431.6,27.51978798]
[1751166049781,1.58419675,2431.7,2431.6,28.09533798]
[1751166050381,1.58419675,2431.7,2431.6,27.51978798]
[1751166051380,1.58419675,2431.7,2431.6,28.09533798]
[1751166052474,1.58419675,2431.7,2431.6,29.44803798]
[1751166058586,1.58419675,2431.7,2431.6,28.87248798]
[1751166058988,1.58419675,2431.7,2431.6,0.6999]
[1751166059287,1.58419675,2431.7,2431.6,25.4349]
[1751166060288,1.58419675,2431.7,2431.6,26.01045]
[1751166060490,1.58419675,2431.7,2431.6,27.40455]
[1751166063391,1.58419675,2431.7,2431.6,26.829]
[1751166065089,1.58419675,2431.7,2431.3,6.278]
[1751166065090,0.5756,2431.4,2431.3,6.278]
[1751166065492,0.5756,2431.4,2431.3,31.013]
[1751166065995,0.57562,2431.3,2431.2,5.48444939]
[1751166066188,0.57562,2431.3,2431.2,30.21944939]
[1751166066689,0.57562,2431.3,2431.2,30.79508939]
[1751166066889,0.57562,2431.3,2431.2,32.12788939]
[1751166068996,0.57562,2431.3,2431.2,31.55224939]
[1751166069895,0.57562,2431.3,2431.2,32.12788939]
[1751166070197,0.57562,2431.3,2431.2,31.55224939]
[1751166070796,0.57562,2431.3,2431.2,32.12788939]
[1751166071098,0.57562,2431.3,2431.2,31.55224939]
[1751166071496,0.57562,2431.3,2431.2,32.12788939]
[1751166072195,0.57562,2431.3,2431.2,31.55224939]
[1751166072495,0.57562,2431.3,2431.2,30.21944939]
[1751166073103,0.57562,2431.3,2431.2,30.79508939]
[1751166073400,0.57562,2431.3,2431.2,25.3987]
[1751166073597,0.57562,2431.3,2431.2,24.737]
[1751166074796,0.57564,2431.2,2431.1,7.6455]
[1751166075007,0.57564,2431.2,2431.1,32.3835]
[1751166075197,0.57564,2431.2,2431.1,1.3675]
[1751166075499,0.57564,2431.2,2431.1,26.1055]
[1751166075898,2.65852798,2431.2,2431.1,26.1045]
[1751166076493,3.6668248,2431.2,2431.1,26.1045]
[1751166076685,3.6668248,2431.2,2431.1,25.4234]
[1751166076887,0.57569,2431.0,2430.9,0.6809]
[1751166077197,1.58398682,2431.0,2430.9,0.6809]
[1751166077401,1.58398682,2431.0,2430.9,25.4209]
[1751166077402,0.57569,2431.0,2430.9,25.4209]
[1751166078293,0.57569,2431.0,2430.9,25.99661]
[1751166078493,0.57569,2431.0,2430.9,25.4209]
[1751166078689,0.57569,2431.0,2430.9,26.8845]
[1751166079797,3.2078,2431.4,2430.9,26.8845]
[1751166080094,0.57565,2431.2,2431.1,0.57566]
[1751166080294,0.57567,2431.1,2431.0,2.65855798]
[1751166080493,0.57567,2431.1,2431.0,27.39955798]
[1751166080689,0.57567,2431.1,2431.0,25.31667]
[1751166082099,0.57566,2431.2,2431.1,0.57566]
[1751166082902,0.57564,2431.2,2431.1,3.55259346]
[1751166083903,0.57564,2431.3,2431.2,0.57564]
[1751166084100,1.58276936,2431.3,2431.2,0.57564]
[1751166084500,1.00712936,2431.3,2431.2,0.57564]
[1751166085001,3.78341,2431.4,2431.3,0.57562]
[1751166085202,4.79049049,2431.4,2431.3,25.31662]
[1751166087306,1.58269049,2431.4,2431.3,25.31662]
[1751166089806,1.00708049,2431.4,2431.3,25.31662]
[1751166090505,1.58268049,2431.4,2431.3,25.31662]
[1751166092906,1.58268049,2431.4,2431.3,26.75682]
[1751166094412,1.00708049,2431.4,2431.3,26.75682]
[1751166095511,1.58268049,2431.4,2431.3,26.75682]
[1751166097814,1.58268049,2431.4,2431.3,26.1812]
[1751166098314,1.58268049,2431.4,2431.3,26.75682]
[1751166098912,1.58268049,2431.4,2431.3,26.1812]
[1751166102217,2.24968049,2431.4,2431.3,26.1812]
[1751166102413,0.57562,2431.3,2431.2,0.7281]
[1751166102714,0.57569,2431.0,2430.9,3.2078]
[1751166102915,2.65999242,2431.0,2430.9,3.2078]
[1751166103509,0.57576,2430.7,2430.6,6.28]
[1751166103810,2.66006242,2430.7,2430.6,31.028]
[1751166105724,2.66006242,2430.7,2430.6,31.60379]
[1751166106018,2.66006242,2430.7,2430.5,6.69019]
[1751166106019,0.57579,2430.6,2430.5,6.69019]
[1751166106224,0.57579,2430.6,2430.5,31.43819]
[1751166107518,0.57578,2430.7,2430.6,0.57578]
[1751166110124,1.29556,2430.8,2430.7,0.57576]
[1751166110326,2.3025334,2430.8,2430.7,0.57576]
[1751166111723,0.57576,2430.7,2430.6,1.91117]
[1751166113427,0.57576,2430.7,2430.6,26.65917]
[1751166115628,1.29556,2430.8,2430.7,0.57576]
[1751166120332,0.57576,2430.8,2430.7,0.57576]
[1751166120527,0.57576,2430.8,2430.7,1.98786]
[1751166123335,0.57573,2430.9,2430.8,0.57572]
[1751166123527,1.5821942,2430.9,2430.8,0.57572]
[1751166123723,1.0064642,2430.9,2430.8,1.23902]
[1751166123929,1.30456,2431.2,2431.1,0.57567]
[1751166124129,2.31095897,2431.2,2431.1,0.57567]
[1751166130139,0.57569,2431.1,2431.0,0.57568]
[1751166130347,1.58206897,2431.1,2431.0,1.98829]
[1751166130652,3.66625866,2431.1,2431.0,1.98829]
[1751166130841,3.66625866,2431.1,2431.0,1.4126]
[1751166132648,0.57569,2431.0,2430.9,26.00681]
[1751166132944,1.58208897,2431.0,2430.9,26.00681]
[1751166133448,1.58208897,2431.0,2430.9,27.39161]
[1751166133846,1.58208897,2431.0,2430.9,26.8159]
[1751166134147,1.58208897,2431.0,2430.9,27.39161]
[1751166138542,1.58208897,2431.0,2430.9,24.746]
[1751166139249,1.58208897,2431.0,2430.9,25.32171]
[1751166145755,1.58208897,2431.0,2430.9,26.64981]
[1751166149152,1.00639897,2431.0,2430.9,26.64981]
[1751166149350,1.00639897,2431.0,2430.9,28.73399969]
[1751166149551,1.58474329,2431.2,2431.1,0.57567]
[1751166149749,1.58474329,2431.2,2431.1,25.31867]
[1751166150249,1.58474329,2431.2,2431.1,27.45277]
[1751166151253,1.00909329,2431.2,2431.1,27.45277]
[1751166151452,1.00909329,2431.2,2431.1,29.53695969]
[1751166158859,1.58473329,2431.2,2431.1,27.45277]
[1751166159063,1.58473329,2431.2,2431.1,26.8771]
[1751166160166,1.58473329,2431.2,2431.1,27.45277]
[1751166162969,1.00909329,2431.2,2431.1,27.45077]
[1751166168971,1.58473329,2431.2,2431.1,27.45077]
[1751166169573,1.00909329,2431.2,2431.1,27.45077]
[1751166171568,1.58473329,2431.2,2431.1,27.45077]
[1751166171769,1.00909329,2431.2,2431.1,27.45077]
[1751166172676,1.58473329,2431.2,2431.1,27.45077]
[1751166175680,1.00909329,2431.2,2431.1,27.45077]
[1751166176481,1.58473329,2431.2,2431.1,27.45077]
[1751166177280,1.00909329,2431.2,2431.1,27.45077]
[1751166180480,1.00909329,2431.2,2431.1,36.61914938]
[1751166180686,3.2078,2431.5,2431.4,0.5756]
[1751166180887,4.21430292,2431.5,2431.4,27.39978969]
[1751166181287,4.21430292,2431.5,2431.4,25.3156]
[1751166181677,4.21430292,2431.5,2431.4,25.9845]
[1751166183079,0.57561,2431.4,2431.3,0.57561]
[1751166183277,1.58211292,2431.4,2431.3,25.31461]
[1751166184382,0.57562,2431.3,2431.2,0.57563]
[1751166184577,1.58212292,2431.3,2431.2,25.31663]
[1751166185086,1.00650292,2431.3,2431.2,25.31663]
[1751166189289,4.47339,2431.5,2431.4,0.5756]
[1751166189489,0.57561,2431.4,2431.3,0.57561]
[1751166189689,1.58127297,2431.4,2431.3,0.57561]
[1751166190889,0.57562,2431.3,2431.2,26.73643]
[1751166191189,1.58128297,2431.3,2431.2,25.31663]
[1751166191586,1.58128297,2431.3,2431.2,0.57563]
[1751166191887,1.58128297,2431.3,2431.2,25.31863]
[1751166196594,1.58128297,2431.3,2431.2,0.57563]
[1751166196595,1.00566297,2431.3,2431.2,0.57563]
[1751166196794,1.00566297,2431.3,2431.2,25.31563]
[1751166197097,1.58128297,2431.3,2431.2,25.31563]
[1751166199997,1.58128297,2431.3,2431.2,0.57563]
[1751166200199,1.58128297,2431.3,2431.2,25.31463]
[1751166201192,1.00566297,2431.3,2431.2,25.31463]
[1751166207501,1.00566297,2431.3,2431.2,26.70733]
[1751166209194,1.00566297,2431.3,2431.1,0.6689]
[1751166209397,0.57567,2431.1,2431.0,1.25377]
[1751166209595,0.57567,2431.1,2431.0,25.99377]
[1751166212897,0.57567,2431.1,2431.0,27.32707]
[1751166214203,1.58296096,2431.1,2431.0,27.32707]
[1751166215401,1.00729096,2431.1,2431.0,27.32707]
[1751166219205,1.58296096,2431.1,2431.0,27.32707]
[1751166219904,1.58296096,2431.1,2431.0,1.25377]
[1751166220102,1.58296096,2431.1,2431.0,25.99377]
[1751166220307,1.58296096,2431.1,2431.0,25.31567]
[1751166220506,1.58296096,2431.1,2431.0,24.74]
[1751166222512,1.58296096,2431.1,2431.0,25.31569]
[1751166224011,1.58296096,2431.1,2431.0,24.74]
[1751166225803,4.79076096,2431.1,2431.0,24.74]
[1751166226711,4.79076096,2431.1,2431.0,25.31569]
[1751166227215,1.58296096,2431.1,2431.0,25.31569]
[1751166227513,4.79076096,2431.1,2431.0,25.31569]
[1751166229318,0.57569,2431.0,2430.9,6.8557]
[1751166229512,3.66673919,2431.0,2430.9,31.5967]
[1751166230009,3.66673919,2431.0,2430.9,31.021]
[1751166230517,3.66673919,2431.0,2430.9,31.59671]
[1751166231318,3.66673919,2431.0,2430.9,25.31671]
[1751166232215,3.66673919,2431.0,2430.9,24.741]
[1751166232416,0.57574,2430.8,2430.7,2.65834]
[1751166232619,2.65949823,2430.8,2430.7,2.65834]
[1751166232912,2.65949823,2430.8,2430.7,27.39934]
[1751166233119,0.57574,2430.8,2430.7,27.39934]
[1751166233315,3.39388823,2430.9,2430.8,0.57574]
[1751166233619,4.39792532,2430.9,2430.8,0.57574]
[1751166238621,1.57974709,2430.9,2430.8,0.57574]
[1751166238823,1.00403709,2430.9,2430.8,2.02114]
[1751166253630,1.00403709,2430.9,2430.8,26.76414]
[1751166254132,1.68193709,2430.9,2430.8,26.76414]
[1751166255231,2.25764709,2430.9,2430.8,26.76414]
[1751166256732,1.68193709,2430.9,2430.8,26.76414]
[1751166258432,2.25764709,2430.9,2430.8,0.57574]
[1751166258635,2.25764709,2430.9,2430.8,25.31874]
[1751166259029,0.57574,2430.8,2430.7,4.48185]
[1751166259239,1.00403709,2430.8,2430.7,28.52656]
[1751166259432,1.00403709,2430.8,2430.7,29.88836]
[1751166260832,1.00538585,2430.9,2430.7,29.3126]
[1751166261034,1.2909,2431.0,2430.8,3.46515823]
[1751166261234,1.2909,2431.0,2430.9,25.31871]
[1751166261437,2.29635766,2431.0,2430.9,25.31871]
[1751166263839,1.72065766,2431.0,2430.9,25.31871]
[1751166264429,1.00545766,2431.0,2430.9,25.31871]
[1751166264632,1.00545766,2431.0,2430.9,26.65891]
[1751166265340,1.00545766,2431.0,2430.9,36.14671]
[1751166265641,3.2078,2431.5,2431.4,0.5756]
[1751166265841,4.21308974,2431.5,2431.4,27.40835823]
[1751166266535,4.21308974,2431.5,2431.4,28.74855823]
[1751166266740,4.21308974,2431.5,2431.4,26.6648]
[1751166267240,4.21308974,2431.5,2431.4,25.3246]
[1751166267935,1.00528974,2431.5,2431.4,25.3246]
[1751166271946,1.58085974,2431.5,2431.4,25.3246]
[1751166272137,1.00528974,2431.5,2431.4,25.3246]
[1751166272533,1.00528974,2431.5,2431.4,26.7896]
[1751166272942,1.00528974,2431.5,2431.4,27.5107]
[1751166273747,1.58085974,2431.5,2431.4,26.0457]
[1751166273951,1.58085974,2431.5,2431.4,26.0447]
[1751166274446,1.58085974,2431.5,2431.4,26.0437]
[1751166276250,1.58085974,2431.5,2431.4,1.2967]
[1751166276445,1.58085974,2431.5,2431.4,26.0427]
[1751166282861,1.00528974,2431.5,2431.4,26.0427]
[1751166283063,1.00528974,2431.5,2431.4,27.4762]
[1751166283561,3.8867,2431.7,2431.6,0.57555]
[1751166283762,4.88735804,2431.7,2431.6,0.57555]
[1751166284154,4.88735804,2431.7,2431.6,1.26715]
[1751166287162,4.20845804,2431.7,2431.6,1.26715]
[1751166287960,4.20845804,2431.7,2431.6,2.65874308]
[1751166288164,4.20845804,2431.7,2431.6,3.39144308]
[1751166288761,3.2078,2431.7,2431.6,3.39144308]
[1751166290059,5.97639308,2432.0,2431.9,0.57548]
[1751166290258,6.97707057,2432.0,2431.9,0.57548]
[1751166290761,4.89387749,2432.0,2431.9,0.57548]
[1751166291862,5.46932749,2432.0,2431.9,0.57548]
[1751166293266,4.89387749,2432.0,2431.9,0.57548]
[1751166294366,4.89387749,2432.0,2431.9,1.29488]
[1751166296361,5.46932749,2432.0,2431.9,1.29488]
[1751166297561,4.20847749,2432.0,2431.9,1.29488]
[1751166297766,4.20847749,2432.0,2431.9,2.72798]
[1751166297961,1.00067749,2432.0,2431.9,2.72798]
[1751166304372,1.00067749,2432.0,2431.9,27.46298]
[1751166312383,1.00067749,2432.0,2431.9,2.72798]
[1751166312682,1.00067749,2432.0,2431.9,26.02788]
[1751166315182,1.00067749,2432.0,2431.9,27.46808]
[1751166318382,1.00067749,2432.0,2431.9,2.73508]
[1751166318584,1.00067749,2432.0,2431.9,27.46808]
[1751166324489,1.00067749,2432.0,2431.9,26.02788]
[1751166331690,1.57612749,2432.0,2431.9,0.57548]
[1751166331896,1.57612749,2432.0,2431.9,25.30748]
[1751166333695,1.00067749,2432.0,2431.9,25.30748]
[1751166353817,1.00067749,2432.0,2431.9,26.67438]
[1751166356618,1.00067749,2432.0,2431.9,29.88218]
[1751166358421,1.00067749,2432.0,2431.9,41.15918]
[1751166361223,2.46673647,2432.6,2432.5,0.57534]
[1751166361423,1.00292959,2432.6,2432.5,25.30634]
[1751166361821,1.00292959,2432.6,2432.5,26.64944]
[1751166366227,6.35633647,2432.9,2432.8,0.57526]
[1751166366530,6.35633647,2432.9,2432.8,25.30926]
[1751166366531,3.8896,2432.9,2432.8,25.30926]
[1751166367423,3.8896,2432.9,2432.8,26.73716]
[1751166368528,3.2078,2432.9,2432.8,26.73716]
[1751166368730,0.6681,2433.1,2433.0,0.57522]
[1751166369227,1.24329,2433.1,2433.0,0.57522]
[1751166370634,0.6681,2433.1,2433.0,0.57522]
[1751166370834,1.24329,2433.1,2433.0,0.57522]
[1751166376832,0.57524,2432.9,2432.8,0.7323]
[1751166377038,3.54855875,2432.9,2432.8,0.57526]
[1751166378945,0.57526,2432.8,2432.7,25.30027]
[1751166379144,1.26186,2432.8,2432.7,25.30027]
[1751166383347,0.57529,2432.7,2432.6,1.30939]
[1751166383545,1.26188,2432.8,2432.7,0.57529]
[1751166386547,3.34344794,2432.8,2432.7,0.57529]
[1751166395861,3.34344794,2432.8,2432.7,1.26409]
[1751166397262,3.34344794,2432.8,2432.7,2.90027795]
[1751166400163,3.34344794,2432.8,2432.7,2.32498795]
[1751166400367,0.57529,2432.7,2432.6,1.63618795]
[1751166400661,3.78309,2432.7,2432.6,26.35918795]
[1751166402365,3.78309,2432.7,2432.6,26.93449795]
[1751166402752,3.78309,2432.7,2432.6,28.27759795]
[1751166403560,3.2078,2432.7,2432.6,28.27759795]
[1751166403765,3.2078,2432.7,2432.6,26.64141]
[1751166404263,3.78309,2432.7,2432.6,26.64141]
[1751166404466,1.26188,2432.8,2432.7,0.57529]
[1751166404661,1.26188,2432.8,2432.7,3.64978916]
[1751166404865,0.57525,2432.9,2432.8,0.57526]
[1751166405165,3.78303,2433.0,2432.9,0.57524]
[1751166405564,3.78303,2433.0,2432.9,2.01394]
[1751166405764,3.2078,2433.0,2432.9,2.01394]
[1751166405956,3.2078,2433.0,2432.9,2.72754]
[1751166406561,3.2078,2433.0,2432.9,27.45754]
[1751166409572,3.78302,2433.0,2432.9,27.45754]
[1751166411971,0.57522,2433.0,2432.9,27.45754]
[1751166415373,0.57521,2433.1,2433.0,0.5752]
[1751166415573,0.57521,2433.1,2433.0,2.6526]
[1751166416976,0.57518,2433.2,2433.1,0.57517]
[1751166417181,6.75524099,2433.3,2433.2,0.57517]
[1751166417674,3.78297,2433.3,2433.2,0.57517]
[1751166418374,0.57517,2433.2,2433.1,26.71868]
[1751166422083,0.57516,2433.3,2433.2,0.57515]
[1751166422279,0.57515,2433.3,2433.2,1.99595]
[1751166422576,3.2078,2433.4,2433.3,0.57515]
[1751166422776,3.2078,2433.4,2433.3,2.69865]
[1751166422976,3.2078,2433.4,2433.3,3.41165]
[1751166423278,0.57511,2433.5,2433.4,0.57512]
[1751166423478,0.57511,2433.5,2433.4,1.4208]
[1751166424073,0.57511,2433.5,2433.4,1.99592]
[1751166425270,0.57511,2433.5,2433.4,1.4208]
[1751166425780,0.57511,2433.5,2433.4,1.99592]
[1751166428375,0.57511,2433.5,2433.4,1.4208]
[1751166429883,0.57511,2433.5,2433.4,1.99592]
[1751166431077,0.57511,2433.5,2433.4,1.4208]
[1751166432985,0.57511,2433.5,2433.4,1.99592]
[1751166433582,0.57511,2433.5,2433.4,1.4208]
[1751166433886,0.57511,2433.5,2433.4,1.99592]
[1751166434586,0.57511,2433.5,2433.4,1.4208]
[1751166435778,0.57512,2433.4,2433.3,1.4157]
[1751166439985,0.57512,2433.4,2433.3,1.99085]
[1751166441283,0.57512,2433.4,2433.3,1.4157]
[1751166442392,0.57512,2433.4,2433.3,1.99085]
[1751166443085,2.97227099,2433.5,2433.1,4.84359916]
[1751166443387,0.57516,2433.3,2433.2,0.57516]
[1751166443791,1.30364,2433.4,2433.3,0.57515]
[1751166444387,0.57515,2433.3,2433.2,2.67585]
[1751166446491,0.57515,2433.3,2433.2,4.31164916]
[1751166447592,1.30364,2433.4,2433.3,0.57515]
[1751166447792,1.30364,2433.4,2433.3,2.01665]
[1751166450194,1.30364,2433.4,2433.3,1.4415]
[1751166451198,0.57515,2433.3,2433.2,2.91844916]
[1751166452194,0.57515,2433.3,2433.2,2.34329916]
[1751166452389,0.57515,2433.3,2433.2,2.91846916]
[1751166457297,0.57515,2433.3,2433.2,1.28267]
[1751166458402,0.57517,2433.2,2433.1,3.13778193]
[1751166458698,0.57517,2433.2,2433.1,27.86178193]
[1751166459402,0.57517,2433.2,2433.1,28.43697193]
[1751166462102,2.80887941,2433.4,2433.2,0.57517]
[1751166462299,0.57515,2433.3,2433.2,3.02945193]
[1751166462601,0.57515,2433.3,2433.2,24.727]
[1751166464202,0.57515,2433.3,2433.2,25.30217]
[1751166464598,0.57515,2433.3,2433.2,24.727]
[1751166465206,0.57515,2433.3,2433.2,25.30217]
[1751166466303,0.57515,2433.3,2433.2,26.93850716]
[1751166467504,0.57515,2433.3,2433.2,26.36333716]
[1751166470497,0.57515,2433.3,2433.2,1.63633716]
[1751166470705,0.57515,2433.3,2433.2,26.35933716]
[1751166473304,0.57515,2433.3,2433.2,1.63633716]
[1751166474411,0.57517,2433.2,2433.1,1.63633716]
[1751166474608,2.65554941,2433.2,2433.1,1.63633716]
[1751166474809,0.57519,2433.1,2433.0,27.75149193]
[1751166475010,0.57519,2433.1,2433.0,29.12319193]
[1751166475311,0.57519,2433.1,2433.0,28.54798193]
[1751166475806,0.57519,2433.1,2433.0,29.12320193]
[1751166476006,0.57519,2433.1,2433.0,28.54798193]
[1751166477421,0.57519,2433.1,2433.0,29.12320193]
[1751166479312,6.01667941,2433.4,2433.1,0.57518]
[1751166479518,3.2078,2433.4,2433.3,1.63571454]
[1751166479722,3.2078,2433.4,2433.3,2.21086454]
[1751166480019,3.2078,2433.4,2433.3,4.40056454]
[1751166480413,0.57511,2433.5,2433.4,0.57512]
[1751166480616,0.57511,2433.5,2433.4,26.1727]
[1751166486715,0.57511,2433.5,2433.4,24.73]
[1751166487113,3.54675962,2433.5,2433.4,24.73]
[1751166487319,0.57511,2433.5,2433.4,24.73]
[1751166487520,0.57511,2433.5,2433.4,26.1667]
[1751166489326,0.57511,2433.5,2433.4,24.73]
[1751166493730,0.57512,2433.4,2433.3,2.36241454]
[1751166494026,1.24562,2433.4,2433.3,26.35871454]
[1751166494231,4.21726962,2433.4,2433.3,26.35871454]
[1751166494733,4.21726962,2433.4,2433.3,1.63571454]
[1751166495634,4.21726962,2433.4,2433.2,1.63571454]
[1751166495635,0.57515,2433.3,2433.2,1.63571454]
[1751166496629,3.78295,2433.3,2433.2,1.63571454]
[1751166496836,0.57517,2433.2,2433.1,1.63571454]
[1751166497637,3.54681962,2433.2,2433.1,1.63571454]
[1751166499944,17.76648962,2433.2,2432.9,1.63526563]
[1751166500135,3.54686962,2433.0,2432.9,1.63526563]
[1751166500739,4.95416962,2433.0,2432.9,1.63526563]
[1751166501839,0.57526,2432.8,2432.7,3.2078]
[1751166502148,3.54690962,2432.8,2432.7,3.2078]
[1751166502340,1.43823,2432.7,2432.3,6.34178193]
[1751166502641,0.57536,2432.4,2432.3,7.07098193]
[1751166502940,0.57536,2432.4,2432.3,8.53908193]
[1751166503343,0.57536,2432.4,2432.3,6.0848]
[1751166503940,0.57536,2432.4,2432.3,30.8348]
[1751166505531,0.57536,2432.4,2432.3,6.0848]
[1751166508043,0.57536,2432.4,2432.3,2.877]
[1751166508439,0.57536,2432.4,2432.3,6.0848]
[1751166509144,0.57536,2432.4,2432.3,2.877]
[1751166509346,0.57536,2432.4,2432.3,6.0848]
[1751166510141,0.57536,2432.4,2432.3,6.66018]
[1751166510447,0.57536,2432.4,2432.3,6.0848]
[1751166510645,0.57536,2432.4,2432.3,1.4089]
[1751166511139,4.27080962,2432.4,2432.3,1.4089]
[1751166512040,1.29916,2432.4,2432.3,1.4089]
[1751166512840,0.57541,2432.2,2432.1,1.3644]
[1751166513041,0.57541,2432.2,2432.1,26.8324]
[1751166513240,0.57541,2432.2,2432.1,2.0794]
[1751166513441,0.57541,2432.2,2432.1,26.8324]
[1751166514340,0.57541,2432.2,2432.1,26.8314]
[1751166517448,0.5754,2432.3,2432.1,27.40681]
[1751166517655,0.5754,2432.3,2432.2,1.4015]
[1751166524957,0.57541,2432.2,2432.1,25.467]
[1751166525157,0.57541,2432.2,2432.1,26.7944]
[1751166529860,0.57541,2432.2,2432.1,26.7884]
[1751166532855,0.57541,2432.2,2432.1,26.7864]
[1751166539264,0.57541,2432.2,2432.1,28.42056669]
[1751166540167,0.57541,2432.2,2432.1,28.99599669]
[1751166540661,0.57541,2432.2,2432.1,26.7864]
[1751166542364,0.57541,2432.2,2432.1,28.42056669]
[1751166545254,0.57541,2432.2,2432.1,28.99599669]
[1751166545460,0.57541,2432.2,2432.1,28.42056669]
[1751166553373,0.57541,2432.2,2432.1,3.67656669]
[1751166553773,3.9316,2432.4,2432.2,0.57541]
[1751166553774,3.2078,2432.4,2432.2,0.57541]
[1751166553966,3.78318,2432.4,2432.3,26.81638198]
[1751166554366,3.78318,2432.4,2432.3,28.16598198]
[1751166556479,0.57538,2432.4,2432.3,28.16598198]
[1751166557588,0.57538,2432.4,2432.3,28.74136198]
[1751166561791,0.57538,2432.4,2432.3,28.16598198]
[1751166562087,2.65776198,2432.4,2432.3,24.734]
[1751166562390,0.57541,2432.2,2432.1,5.55696669]
[1751166562688,0.57541,2432.2,2432.1,30.29896669]
[1751166562889,0.57541,2432.2,2432.1,32.25199669]
[1751166564090,2.65779198,2432.2,2432.1,4.84196669]
[1751166566389,2.65779198,2432.2,2432.1,1.63416669]
[1751166569383,0.57541,2432.2,2432.1,1.63416669]
[1751166573202,0.57543,2432.1,2432.0,29.13574867]
[1751166573398,0.57543,2432.1,2432.0,30.57174867]
[1751166574501,0.57543,2432.1,2432.0,28.93758198]
[1751166575500,0.57543,2432.1,2432.0,30.5763178]
[1751166576297,0.57543,2432.1,2432.0,3.75093582]
[1751166576503,0.57543,2432.1,2432.0,26.38873582]
[1751166577402,2.65781198,2432.1,2432.0,26.38773582]
[1751166578104,2.65781198,2432.1,2432.0,1.63873582]
[1751166578306,2.65781198,2432.1,2432.0,26.38773582]
[1751166579801,2.65781198,2432.1,2432.0,1.63873582]
[1751166580108,2.65781198,2432.1,2432.0,26.38673582]
[1751166581101,2.65781198,2432.1,2432.0,1.63873582]
[1751166582105,0.57543,2432.1,2432.0,1.63873582]
[1751166584110,0.57545,2432.0,2431.9,26.96120582]
[1751166584311,0.57545,2432.0,2431.9,28.38540582]
[1751166584910,0.57545,2432.0,2431.9,3.06293582]
[1751166585211,0.57545,2432.0,2431.9,26.38473582]
[1751166586511,2.65783198,2432.0,2431.9,1.63873582]
[1751166587107,0.5755,2431.8,2431.7,2.45428193]
[1751166587313,0.57553,2431.7,2431.6,27.20428193]
[1751166587512,0.57553,2431.7,2431.6,24.75]
[1751166589116,0.57553,2431.7,2431.6,26.0744]
[1751166589813,0.57552,2431.8,2431.6,26.64995]
[1751166590015,0.57552,2431.8,2431.7,1.3244]
[1751166590314,0.57552,2431.8,2431.7,2.0277]
[1751166590815,0.57552,2431.8,2431.7,2.7367]
[1751166593706,0.57555,2431.6,2431.5,24.757]
[1751166593908,0.57555,2431.6,2431.5,25.4851]
[1751166594109,0.57555,2431.6,2431.5,26.8735]
[1751166594412,0.57555,2431.6,2431.5,26.8715]
[1751166596205,0.57555,2431.6,2431.5,2.1165]
[1751166596411,0.57555,2431.6,2431.5,26.8705]
[1751166596913,0.57555,2431.6,2431.5,27.44607]
[1751166598514,0.57555,2431.6,2431.5,26.8685]
[1751166598714,0.57555,2431.6,2431.5,27.44407]
[1751166600627,0.57554,2431.7,2431.5,27.44407]
[1751166600915,0.57554,2431.7,2431.6,1.93815]
[1751166601121,0.57554,2431.7,2431.6,1.3626]
[1751166604224,0.57554,2431.7,2431.6,1.93815]
[1751166604426,0.57554,2431.7,2431.6,1.3626]
[1751166606318,0.57554,2431.7,2431.6,1.93815]
[1751166606624,0.57554,2431.7,2431.6,1.3626]
[1751166611640,3.9011,2431.9,2431.6,1.3626]
[1751166611844,3.2078,2431.9,2431.8,0.65772]
[1751166612238,3.2078,2431.9,2431.8,3.40912]
[1751166612638,3.2078,2431.9,2431.8,5.49160655]
[1751166613239,3.2078,2431.9,2431.8,30.24260655]
[1751166613441,3.86549,2431.9,2431.8,30.24260655]
[1751166614645,0.65769,2431.9,2431.8,30.24260655]
[1751166614941,0.65769,2431.9,2431.8,29.58488655]
[1751166616947,0.65769,2431.9,2431.8,4.83388655]
[1751166621856,0.65769,2431.9,2431.8,5.49160655]
[1751166623749,4.52978,2432.0,2431.8,5.49160655]
[1751166624150,4.52978,2432.0,2431.9,1.3935]
[1751166625152,3.86548,2432.0,2431.9,1.3935]
[1751166629255,3.86548,2432.0,2431.9,2.05119]
[1751166629454,0.65766,2432.1,2432.0,0.65765]
[1751166629658,0.65766,2432.1,2432.0,4.09153655]
[1751166629859,0.65766,2432.1,2432.0,28.83853655]
[1751166630160,0.65763,2432.2,2432.1,0.65763]
[1751166630354,0.65763,2432.2,2432.1,2.11653]
[1751166633362,0.65764,2432.1,2432.0,24.747]
[1751166634460,0.65764,2432.1,2432.0,25.40466]
[1751166634961,0.65764,2432.1,2432.0,24.747]
[1751166641365,0.65764,2432.1,2432.0,25.40466]
[1751166641555,0.65764,2432.1,2432.0,26.87316]
[1751166644066,0.65764,2432.1,2432.0,27.58386]
[1751166647766,0.65764,2432.1,2432.0,26.9262]
[1751166654574,0.65764,2432.1,2432.0,29.00860516]